[Event "Early-Titled-Tuesday-Blitz-March-12-2024"]
[Site "Chess.com"]
[Date "2024.03.12"]
[Round "7"]
[White "GAO"]
[Black "willcab71"]
[Result "1-0"]
[WhiteElo "2316"]
[BlackElo "2134"]
[TimeControl "180+1"]
[EndTime "9:15:47 PDT"]
[Termination "GAO won by checkmate"]

1. a3 {[%clk 0:03:00.9]} 1... Nf6 {[%clk 0:02:56.4]} 2. b4 {[%clk 0:03:00.1]}
2... d5 {[%clk 0:02:57.3]} 3. Bb2 {[%clk 0:02:59.6]} 3... Nbd7 {[%clk
0:02:57.8]} 4. e3 {[%clk 0:02:59.8]} 4... g6 {[%clk 0:02:57.8]} 5. Nf3 {[%clk
0:02:58.9]} 5... Bg7 {[%clk 0:02:57.9]} 6. d4 {[%clk 0:02:57.6]} 6... O-O {[%clk
0:02:57.4]} 7. c4 {[%clk 0:02:58.5]} 7... c6 {[%clk 0:02:55.4]} 8. Nc3 {[%clk
0:02:58.6]} 8... Re8 {[%clk 0:02:54.8]} 9. Qb3 {[%clk 0:02:58.3]} 9... e6 {[%clk
0:02:48.7]} 10. b5 {[%clk 0:02:57.6]} 10... Qc7 {[%clk 0:02:32.8]} 11. Be2
{[%clk 0:02:55.9]} 11... Ne4 {[%clk 0:02:18.2]} 12. O-O {[%clk 0:02:49.4]} 12...
f5 {[%clk 0:02:15.6]} 13. a4 {[%clk 0:02:45.6]} 13... Ndf6 {[%clk 0:02:07.6]}
14. a5 {[%clk 0:02:39.8]} 14... a6 {[%clk 0:02:04]} 15. Ne5 {[%clk 0:02:33.7]}
15... Nxc3 {[%clk 0:01:59.8]} 16. Bxc3 {[%clk 0:02:31.9]} 16... Ne4 {[%clk
0:02:00.1]} 17. Be1 {[%clk 0:02:28.9]} 17... Bxe5 {[%clk 0:01:45.1]} 18. dxe5
{[%clk 0:02:28]} 18... Qxe5 {[%clk 0:01:38]} 19. Rd1 {[%clk 0:02:28.1]} 19...
Qc7 {[%clk 0:01:17.5]} 20. f3 {[%clk 0:02:25]} 20... Nd6 {[%clk 0:01:02]} 21. b6
{[%clk 0:02:20.8]} 21... Qf7 {[%clk 0:00:49.2]} 22. Bg3 {[%clk 0:02:17.8]} 22...
Nxc4 {[%clk 0:00:41.7]} 23. Bxc4 {[%clk 0:02:16.3]} 23... dxc4 {[%clk
0:00:41.8]} 24. Qxc4 {[%clk 0:02:17.2]} 24... e5 {[%clk 0:00:42.1]} 25. Qc5
{[%clk 0:01:56.7]} 25... f4 {[%clk 0:00:32.7]} 26. exf4 {[%clk 0:01:50.8]} 26...
exf4 {[%clk 0:00:32.6]} 27. Bf2 {[%clk 0:01:51.3]} 27... Be6 {[%clk 0:00:27.6]}
28. Bd4 {[%clk 0:01:47.6]} 28... Bd5 {[%clk 0:00:25.5]} 29. Bb2 {[%clk
0:01:43.7]} 29... Qe7 {[%clk 0:00:20.4]} 30. Rxd5 {[%clk 0:01:35.6]} 30... cxd5
{[%clk 0:00:20.4]} 31. Qxd5+ {[%clk 0:01:36.5]} 31... Qe6 {[%clk 0:00:20.6]} 32.
Qxb7 {[%clk 0:01:33]} 32... Qe7 {[%clk 0:00:20.6]} 33. Qd5+ {[%clk 0:01:31.1]}
33... Qe6 {[%clk 0:00:20.5]} 34. Qb7 {[%clk 0:01:18.8]} 34... Qf7 {[%clk
0:00:16.4]} 35. Qc6 {[%clk 0:01:17.9]} 35... Rac8 {[%clk 0:00:12.2]} 36. Qa4
{[%clk 0:01:13.9]} 36... Qe7 {[%clk 0:00:09.8]} 37. Qa2+ {[%clk 0:01:09.5]}
37... Qe6 {[%clk 0:00:09.5]} 38. Qb1 {[%clk 0:01:07.7]} 38... Qe3+ {[%clk
0:00:09.6]} 39. Kh1 {[%clk 0:01:07.1]} 39... Rcd8 {[%clk 0:00:07.8]} 40. Qa2+
{[%clk 0:01:07.1]} 40... Qe6 {[%clk 0:00:07.5]} 41. Qa3 {[%clk 0:01:02.9]} 41...
Qd6 {[%clk 0:00:04.5]} 42. Qc3 {[%clk 0:01:01.6]} 42... Qd3 {[%clk 0:00:03.6]}
43. Qg7# {[%clk 0:01:01.5]} 1-0

[Event "Early-Titled-Tuesday-Blitz-March-12-2024"]
[Site "Chess.com"]
[Date "2024.03.12"]
[Round "7"]
[White "LeRoidesChampions"]
[Black "Zhigalko_Sergei"]
[Result "1-0"]
[WhiteElo "2651"]
[BlackElo "2834"]
[TimeControl "180+1"]
[EndTime "9:15:50 PDT"]
[Termination "LeRoidesChampions won on time"]

1. d4 {[%clk 0:03:00]} 1... Nf6 {[%clk 0:02:56.8]} 2. Bg5 {[%clk 0:02:59.7]}
2... e6 {[%clk 0:02:56.2]} 3. e4 {[%clk 0:02:59.1]} 3... h6 {[%clk 0:02:56.1]}
4. Bxf6 {[%clk 0:02:59.2]} 4... Qxf6 {[%clk 0:02:57]} 5. c3 {[%clk 0:02:59.7]}
5... d6 {[%clk 0:02:44.3]} 6. Bd3 {[%clk 0:02:57.4]} 6... e5 {[%clk 0:02:43.5]}
7. Ne2 {[%clk 0:02:58]} 7... Nc6 {[%clk 0:02:39]} 8. O-O {[%clk 0:02:56.7]} 8...
g5 {[%clk 0:02:35.9]} 9. Na3 {[%clk 0:02:48.3]} 9... Bd7 {[%clk 0:02:31]} 10.
Qb3 {[%clk 0:02:26.2]} 10... Rb8 {[%clk 0:02:18.7]} 11. Nb5 {[%clk 0:02:22.4]}
11... Qd8 {[%clk 0:02:15.9]} 12. d5 {[%clk 0:01:41.1]} 12... a6 {[%clk
0:02:07.8]} 13. dxc6 {[%clk 0:01:21.1]} 13... bxc6 {[%clk 0:02:07.7]} 14. Bc4
{[%clk 0:01:21.7]} 14... axb5 {[%clk 0:01:42.6]} 15. Bxf7+ {[%clk 0:01:19.9]}
15... Ke7 {[%clk 0:01:43.2]} 16. Bh5 {[%clk 0:01:15.2]} 16... Be6 {[%clk
0:01:41.5]} 17. Qc2 {[%clk 0:01:15]} 17... Bg7 {[%clk 0:01:37.3]} 18. Ng3 {[%clk
0:01:13.7]} 18... Rf8 {[%clk 0:01:33.4]} 19. h3 {[%clk 0:01:12.8]} 19... Rf6
{[%clk 0:00:50.7]} 20. Bg4 {[%clk 0:01:11.4]} 20... Bc4 {[%clk 0:00:43.4]} 21.
Rfe1 {[%clk 0:00:57.8]} 21... Kf8 {[%clk 0:00:41]} 22. Nh5 {[%clk 0:00:54.7]}
22... Rf4 {[%clk 0:00:17.9]} 23. Nxf4 {[%clk 0:00:50.4]} 23... exf4 {[%clk
0:00:18.8]} 24. e5 {[%clk 0:00:44.5]} 24... Bxe5 {[%clk 0:00:18.5]} 25. Qh7
{[%clk 0:00:44.6]} 25... Bg7 {[%clk 0:00:16.2]} 26. Be6 {[%clk 0:00:42.4]} 26...
Bxe6 {[%clk 0:00:09.5]} 27. Rxe6 {[%clk 0:00:43.3]} 27... Qd7 {[%clk 0:00:05.4]}
28. Rf6+ {[%clk 0:00:40.7]} 28... Bxf6 {[%clk 0:00:02]} 29. Qxd7 {[%clk
0:00:40.3]} 1-0

[Event "Early-Titled-Tuesday-Blitz-March-12-2024"]
[Site "Chess.com"]
[Date "2024.03.12"]
[Round "7"]
[White "VD_coach"]
[Black "effefe"]
[Result "1-0"]
[WhiteElo "2516"]
[BlackElo "2397"]
[TimeControl "180+1"]
[EndTime "9:15:51 PDT"]
[Termination "VD_coach won on time"]

1. d4 {[%clk 0:03:00.1]} 1... Nf6 {[%clk 0:02:57.7]} 2. Nf3 {[%clk 0:02:58.7]}
2... g6 {[%clk 0:02:52]} 3. c4 {[%clk 0:02:52.4]} 3... Bg7 {[%clk 0:02:52.7]} 4.
Nc3 {[%clk 0:02:52.1]} 4... O-O {[%clk 0:02:53.5]} 5. g3 {[%clk 0:02:43.8]} 5...
d6 {[%clk 0:02:54.1]} 6. Bg2 {[%clk 0:02:44.1]} 6... Nc6 {[%clk 0:02:54.5]} 7.
O-O {[%clk 0:02:44.7]} 7... Bf5 {[%clk 0:02:55.2]} 8. h3 {[%clk 0:02:41.8]} 8...
Ne4 {[%clk 0:02:55]} 9. Nxe4 {[%clk 0:02:40.8]} 9... Bxe4 {[%clk 0:02:55.9]} 10.
Be3 {[%clk 0:02:40.9]} 10... e5 {[%clk 0:02:56.1]} 11. d5 {[%clk 0:02:35.5]}
11... Ne7 {[%clk 0:02:56.3]} 12. Rc1 {[%clk 0:02:31]} 12... h6 {[%clk
0:02:55.5]} 13. Qd2 {[%clk 0:02:29.8]} 13... Kh7 {[%clk 0:02:54.9]} 14. Rfd1
{[%clk 0:02:16.4]} 14... f5 {[%clk 0:02:55.1]} 15. c5 {[%clk 0:02:06.4]} 15...
Nxd5 {[%clk 0:02:48.9]} 16. cxd6 {[%clk 0:01:56.8]} 16... cxd6 {[%clk
0:02:47.9]} 17. Nh4 {[%clk 0:01:28.7]} 17... Bxg2 {[%clk 0:02:44.3]} 18. Nxg2
{[%clk 0:01:27.8]} 18... Nxe3 {[%clk 0:02:44.9]} 19. Nxe3 {[%clk 0:01:27.8]}
19... f4 {[%clk 0:02:34]} 20. Nd5 {[%clk 0:01:27.6]} 20... fxg3 {[%clk
0:02:28.2]} 21. fxg3 {[%clk 0:01:25.7]} 21... Qd7 {[%clk 0:02:15.8]} 22. Kg2
{[%clk 0:01:24.6]} 22... Qf5 {[%clk 0:02:06.7]} 23. Qe3 {[%clk 0:01:22.8]} 23...
Rf7 {[%clk 0:01:41.8]} 24. Rf1 {[%clk 0:01:20.6]} 24... Qe6 {[%clk 0:01:12.1]}
25. Rxf7 {[%clk 0:01:19.4]} 25... Qxf7 {[%clk 0:01:11]} 26. Qf3 {[%clk
0:01:18.9]} 26... Qxf3+ {[%clk 0:00:15.3]} 27. exf3 {[%clk 0:01:19.8]} 27... Kh8
{[%clk 0:00:08.3]} 28. Rc7 {[%clk 0:01:18.4]} 28... Rb8 {[%clk 0:00:08.8]} 29.
Kf2 {[%clk 0:01:17.8]} 29... e4 {[%clk 0:00:08.4]} 30. fxe4 {[%clk 0:01:15.4]}
30... Bxb2 {[%clk 0:00:08.4]} 31. Ne7 {[%clk 0:01:14]} 31... g5 {[%clk
0:00:05.8]} 32. Nf5 {[%clk 0:01:10.6]} 32... h5 {[%clk 0:00:03]} 33. Nxd6 {[%clk
0:01:09.4]} 33... h4 {[%clk 0:00:02.1]} 34. gxh4 {[%clk 0:01:08.3]} 34... gxh4
{[%clk 0:00:03]} 35. Ke3 {[%clk 0:01:06.5]} 35... Kg8 {[%clk 0:00:02.4]} 36. Nf5
{[%clk 0:01:06.1]} 36... Be5 {[%clk 0:00:02.4]} 37. Re7 {[%clk 0:01:04.7]} 37...
Bg3 {[%clk 0:00:02.4]} 38. Rg7+ {[%clk 0:00:59.8]} 38... Kf8 {[%clk 0:00:02.3]}
39. Rg4 {[%clk 0:01:00.1]} 39... Be1 {[%clk 0:00:01.7]} 40. Ke2 {[%clk
0:00:58.6]} 1-0

[Event "Early-Titled-Tuesday-Blitz-March-12-2024"]
[Site "Chess.com"]
[Date "2024.03.12"]
[Round "7"]
[White "IMRosen"]
[Black "zajka-molotok"]
[Result "0-1"]
[WhiteElo "2701"]
[BlackElo "2543"]
[TimeControl "180+1"]
[EndTime "9:15:54 PDT"]
[Termination "zajka-molotok won on time"]

1. e4 {[%clk 0:03:00.9]} 1... c5 {[%clk 0:02:57.2]} 2. Nc3 {[%clk 0:03:01.1]}
2... Nc6 {[%clk 0:02:56.3]} 3. Bb5 {[%clk 0:03:01.8]} 3... g6 {[%clk 0:02:54.8]}
4. Bxc6 {[%clk 0:02:53.6]} 4... dxc6 {[%clk 0:02:53.1]} 5. d3 {[%clk 0:02:52.6]}
5... Bg7 {[%clk 0:02:52.5]} 6. f4 {[%clk 0:02:53.1]} 6... e5 {[%clk 0:02:34.7]}
7. Nf3 {[%clk 0:02:52.6]} 7... exf4 {[%clk 0:02:33.4]} 8. Bxf4 {[%clk
0:02:52.8]} 8... Ne7 {[%clk 0:02:29.6]} 9. O-O {[%clk 0:02:53.2]} 9... O-O
{[%clk 0:02:28.3]} 10. Qe1 {[%clk 0:02:53.9]} 10... Be6 {[%clk 0:02:22]} 11. Qh4
{[%clk 0:02:50.8]} 11... Nc8 {[%clk 0:02:12.7]} 12. Bg5 {[%clk 0:02:37.5]} 12...
f6 {[%clk 0:02:11.8]} 13. Be3 {[%clk 0:02:37.9]} 13... b6 {[%clk 0:02:09.1]} 14.
a4 {[%clk 0:02:37.8]} 14... a5 {[%clk 0:02:07.9]} 15. Rae1 {[%clk 0:02:34.8]}
15... Nd6 {[%clk 0:02:06.5]} 16. b3 {[%clk 0:02:28.1]} 16... f5 {[%clk
0:02:00.9]} 17. Bg5 {[%clk 0:02:10.3]} 17... Qd7 {[%clk 0:02:00.5]} 18. e5
{[%clk 0:02:07.7]} 18... Nf7 {[%clk 0:01:59.6]} 19. Bf6 {[%clk 0:02:07.5]} 19...
Bxf6 {[%clk 0:01:36.8]} 20. exf6 {[%clk 0:02:08.4]} 20... Rae8 {[%clk 0:01:36]}
21. Ne2 {[%clk 0:01:33.4]} 21... Bd5 {[%clk 0:01:33.8]} 22. Nd2 {[%clk
0:00:56.4]} 22... Qd8 {[%clk 0:01:21.8]} 23. Nf4 {[%clk 0:00:53.9]} 23... g5
{[%clk 0:01:12.4]} 24. Qg3 {[%clk 0:00:50.4]} 24... Qxf6 {[%clk 0:01:11.5]} 25.
c4 {[%clk 0:00:20.6]} 25... Be6 {[%clk 0:01:05.3]} 26. h4 {[%clk 0:00:17.5]}
26... h6 {[%clk 0:01:02.2]} 27. Nf3 {[%clk 0:00:16.8]} 27... Bc8 {[%clk
0:00:53]} 28. hxg5 {[%clk 0:00:12.7]} 28... hxg5 {[%clk 0:00:52.6]} 29. Nh3
{[%clk 0:00:05.5]} 29... f4 {[%clk 0:00:45.4]} 30. Qf2 {[%clk 0:00:02.8]} 30...
g4 {[%clk 0:00:39.1]} 31. Nhg5 {[%clk 0:00:02.1]} 31... gxf3 {[%clk 0:00:36.6]}
32. Nxf3 {[%clk 0:00:01.5]} 32... Ng5 {[%clk 0:00:32.9]} 0-1

[Event "Early-Titled-Tuesday-Blitz-March-12-2024"]
[Site "Chess.com"]
[Date "2024.03.12"]
[Round "7"]
[White "Mops_2004"]
[Black "BilodeauA"]
[Result "0-1"]
[WhiteElo "2850"]
[BlackElo "3003"]
[TimeControl "180+1"]
[EndTime "9:16:07 PDT"]
[Termination "BilodeauA won on time"]

1. g3 {[%clk 0:03:00.9]} 1... e5 {[%clk 0:02:57.8]} 2. Bg2 {[%clk 0:03:00.5]}
2... Nc6 {[%clk 0:02:58.5]} 3. d3 {[%clk 0:02:59.7]} 3... d5 {[%clk 0:02:56.4]}
4. a3 {[%clk 0:02:59.4]} 4... a5 {[%clk 0:02:54.5]} 5. Nc3 {[%clk 0:02:55.2]}
5... Nf6 {[%clk 0:02:53.7]} 6. Bg5 {[%clk 0:02:52.3]} 6... Be6 {[%clk
0:02:53.9]} 7. e4 {[%clk 0:02:38.2]} 7... dxe4 {[%clk 0:02:44]} 8. dxe4 {[%clk
0:02:37.8]} 8... Qxd1+ {[%clk 0:02:34.3]} 9. Rxd1 {[%clk 0:02:37.4]} 9... Nd4
{[%clk 0:02:34]} 10. Rd2 {[%clk 0:02:35.9]} 10... c6 {[%clk 0:02:33.2]} 11. Nge2
{[%clk 0:01:43.3]} 11... Nxe2 {[%clk 0:02:32.6]} 12. Nxe2 {[%clk 0:01:38.3]}
12... Nd7 {[%clk 0:02:31.6]} 13. Nc1 {[%clk 0:01:35.1]} 13... Bc5 {[%clk
0:02:18.3]} 14. Nd3 {[%clk 0:01:31.8]} 14... Bb6 {[%clk 0:02:13.4]} 15. Rd1
{[%clk 0:01:29.9]} 15... f6 {[%clk 0:02:12.8]} 16. Bd2 {[%clk 0:01:27.5]} 16...
a4 {[%clk 0:02:05.3]} 17. Ke2 {[%clk 0:01:15.9]} 17... O-O-O {[%clk 0:01:59]}
18. Be3 {[%clk 0:01:13]} 18... Bc4 {[%clk 0:01:34.6]} 19. Bxb6 {[%clk
0:01:07.6]} 19... Nxb6 {[%clk 0:01:34.3]} 20. f3 {[%clk 0:00:51.6]} 20... Kc7
{[%clk 0:01:34.1]} 21. Bf1 {[%clk 0:00:47.8]} 21... Rd6 {[%clk 0:01:33.5]} 22.
Ke3 {[%clk 0:00:42.5]} 22... Rhd8 {[%clk 0:01:32.4]} 23. Be2 {[%clk 0:00:42.1]}
23... Bb5 {[%clk 0:01:27.3]} 24. Nc5 {[%clk 0:00:20.4]} 24... Nc4+ {[%clk
0:01:24]} 25. Kf2 {[%clk 0:00:15.1]} 25... Nxb2 {[%clk 0:01:16.6]} 26. Rxd6
{[%clk 0:00:07.1]} 26... Rxd6 {[%clk 0:01:17.5]} 27. Bxb5 {[%clk 0:00:06.3]}
27... cxb5 {[%clk 0:01:13.9]} 28. Rb1 {[%clk 0:00:06.8]} 28... Nd1+ {[%clk
0:01:08.4]} 29. Ke1 {[%clk 0:00:05.1]} 29... Nc3 {[%clk 0:01:08.5]} 30. Ra1
{[%clk 0:00:03]} 30... f5 {[%clk 0:00:31.4]} 31. exf5 {[%clk 0:00:02.9]} 31...
Nd5 {[%clk 0:00:31.9]} 32. Rd1 {[%clk 0:00:01.3]} 32... Kc6 {[%clk 0:00:24]} 33.
Ne6 {[%clk 0:00:01.9]} 33... g6 {[%clk 0:00:23]} 0-1

[Event "Early-Titled-Tuesday-Blitz-March-12-2024"]
[Site "Chess.com"]
[Date "2024.03.12"]
[Round "7"]
[White "Chessmissile07"]
[Black "matagordo"]
[Result "0-1"]
[WhiteElo "2897"]
[BlackElo "2282"]
[TimeControl "180+1"]
[EndTime "9:16:08 PDT"]
[Termination "matagordo won on time"]

1. a3 {[%clk 0:02:56.1]} 1... e6 {[%clk 0:02:57.4]} 2. c4 {[%clk 0:02:48.5]}
2... Nf6 {[%clk 0:02:56.7]} 3. g3 {[%clk 0:02:48.1]} 3... d5 {[%clk 0:02:53.5]}
4. Bg2 {[%clk 0:02:46.3]} 4... c6 {[%clk 0:02:52.7]} 5. Qc2 {[%clk 0:02:42.8]}
5... Be7 {[%clk 0:02:52.9]} 6. Nf3 {[%clk 0:02:42.8]} 6... O-O {[%clk
0:02:53.1]} 7. O-O {[%clk 0:02:42.9]} 7... Nbd7 {[%clk 0:02:53.9]} 8. d3 {[%clk
0:02:41.3]} 8... a6 {[%clk 0:02:51.9]} 9. Nc3 {[%clk 0:02:38.2]} 9... h6 {[%clk
0:02:52.4]} 10. b4 {[%clk 0:02:36.3]} 10... b6 {[%clk 0:02:48.3]} 11. e4 {[%clk
0:02:32.8]} 11... Bb7 {[%clk 0:02:43.9]} 12. Bb2 {[%clk 0:02:32.3]} 12... Rc8
{[%clk 0:02:41.6]} 13. Rfe1 {[%clk 0:02:17]} 13... Re8 {[%clk 0:02:41.6]} 14.
Rad1 {[%clk 0:02:07.3]} 14... Kh8 {[%clk 0:02:36.8]} 15. Ne2 {[%clk 0:01:45.7]}
15... Nf8 {[%clk 0:02:31.9]} 16. Nf4 {[%clk 0:01:41.8]} 16... Qd7 {[%clk
0:02:25.2]} 17. Ne5 {[%clk 0:01:41.7]} 17... Qc7 {[%clk 0:02:17.5]} 18. Nxf7+
{[%clk 0:01:28.6]} 18... Kg8 {[%clk 0:02:16.6]} 19. Ne5 {[%clk 0:01:29]} 19...
Bd6 {[%clk 0:01:49.2]} 20. Nfg6 {[%clk 0:01:03.9]} 20... N6d7 {[%clk 0:01:46.3]}
21. f4 {[%clk 0:00:46.9]} 21... Red8 {[%clk 0:01:36]} 22. Qf2 {[%clk 0:00:42.1]}
22... dxc4 {[%clk 0:01:28.9]} 23. Nxf8 {[%clk 0:00:34.3]} 23... Nxf8 {[%clk
0:01:25.5]} 24. Nxc4 {[%clk 0:00:34.1]} 24... c5 {[%clk 0:01:22.5]} 25. Nxd6
{[%clk 0:00:28.6]} 25... Qxd6 {[%clk 0:01:23.4]} 26. Be5 {[%clk 0:00:24.5]}
26... Qc6 {[%clk 0:01:20.4]} 27. bxc5 {[%clk 0:00:22.9]} 27... bxc5 {[%clk
0:01:18]} 28. Bc3 {[%clk 0:00:22.5]} 28... Qa4 {[%clk 0:01:10.8]} 29. Qb2 {[%clk
0:00:19.7]} 29... Rd7 {[%clk 0:01:08.1]} 30. Bh3 {[%clk 0:00:16.3]} 30... Rcd8
{[%clk 0:01:02.6]} 31. Be5 {[%clk 0:00:05.3]} 31... Bxe4 {[%clk 0:00:59.8]} 32.
Rd2 {[%clk 0:00:02.2]} 32... Bxd3 {[%clk 0:00:58.2]} 33. Red1 {[%clk 0:00:02.4]}
33... Bb5 {[%clk 0:00:52.3]} 34. Rxd7 {[%clk 0:00:02]} 34... Rxd7 {[%clk
0:00:51.9]} 35. Rxd7 {[%clk 0:00:02.4]} 35... Bxd7 {[%clk 0:00:42.9]} 36. Bxg7
{[%clk 0:00:02.3]} 36... Qd1+ {[%clk 0:00:39.8]} 37. Bf1 {[%clk 0:00:02.8]}
37... Bb5 {[%clk 0:00:37.2]} 0-1

[Event "Early-Titled-Tuesday-Blitz-March-12-2024"]
[Site "Chess.com"]
[Date "2024.03.12"]
[Round "7"]
[White "GothamChess"]
[Black "Zohid6"]
[Result "0-1"]
[WhiteElo "2685"]
[BlackElo "2900"]
[TimeControl "180+1"]
[EndTime "9:16:13 PDT"]
[Termination "Zohid6 won by checkmate"]

1. c4 {[%clk 0:03:00.9]} 1... e6 {[%clk 0:02:56]} 2. Nf3 {[%clk 0:02:59.1]} 2...
d5 {[%clk 0:02:55.7]} 3. e3 {[%clk 0:02:45.6]} 3... Nf6 {[%clk 0:02:54.2]} 4.
Nc3 {[%clk 0:02:45.2]} 4... c6 {[%clk 0:02:51.2]} 5. b3 {[%clk 0:02:44.8]} 5...
Be7 {[%clk 0:02:49.9]} 6. Bb2 {[%clk 0:02:45.5]} 6... O-O {[%clk 0:02:49.5]} 7.
Qc2 {[%clk 0:02:46.1]} 7... Nbd7 {[%clk 0:02:29.5]} 8. g4 {[%clk 0:02:45.9]}
8... Nc5 {[%clk 0:02:11.7]} 9. g5 {[%clk 0:02:43.8]} 9... Nfe4 {[%clk
0:02:08.6]} 10. Rg1 {[%clk 0:02:42]} 10... a5 {[%clk 0:02:00]} 11. d3 {[%clk
0:02:32.4]} 11... Nd6 {[%clk 0:01:57.7]} 12. d4 {[%clk 0:02:13.7]} 12... Nce4
{[%clk 0:01:57.1]} 13. Bd3 {[%clk 0:02:13.6]} 13... b5 {[%clk 0:01:34.3]} 14. c5
{[%clk 0:01:59.9]} 14... Nf5 {[%clk 0:01:19.2]} 15. Nxe4 {[%clk 0:01:53.5]}
15... dxe4 {[%clk 0:01:20.1]} 16. Bxe4 {[%clk 0:01:54.3]} 16... Bb7 {[%clk
0:01:20.2]} 17. Ne5 {[%clk 0:01:43.9]} 17... Qc7 {[%clk 0:01:15.5]} 18. Bxf5
{[%clk 0:01:30.9]} 18... exf5 {[%clk 0:01:16.4]} 19. Qxf5 {[%clk 0:01:31.3]}
19... Rad8 {[%clk 0:01:15.2]} 20. Rd1 {[%clk 0:01:12.3]} 20... b4 {[%clk
0:01:07.3]} 21. Rg3 {[%clk 0:01:06.5]} 21... Bc8 {[%clk 0:01:03.6]} 22. Qe4
{[%clk 0:01:03.2]} 22... Rd5 {[%clk 0:01:00.9]} 23. h4 {[%clk 0:00:46.8]} 23...
Rfd8 {[%clk 0:00:55.1]} 24. Rc1 {[%clk 0:00:42.4]} 24... a4 {[%clk 0:00:46.1]}
25. h5 {[%clk 0:00:38.6]} 25... a3 {[%clk 0:00:46.2]} 26. Ba1 {[%clk 0:00:38.8]}
26... Bf8 {[%clk 0:00:45.1]} 27. Rc4 {[%clk 0:00:34.9]} 27... Be6 {[%clk
0:00:42.1]} 28. Rc1 {[%clk 0:00:30]} 28... Qc8 {[%clk 0:00:41.3]} 29. g6 {[%clk
0:00:25.4]} 29... fxg6 {[%clk 0:00:41.2]} 30. hxg6 {[%clk 0:00:24.6]} 30... h6
{[%clk 0:00:41.5]} 31. Kf1 {[%clk 0:00:20.5]} 31... Re8 {[%clk 0:00:30.9]} 32.
Qf4 {[%clk 0:00:17.9]} 32... Qc7 {[%clk 0:00:29.9]} 33. Nd3 {[%clk 0:00:16.3]}
33... Qb7 {[%clk 0:00:24.3]} 34. e4 {[%clk 0:00:16.2]} 34... Rh5 {[%clk
0:00:22.7]} 35. Kg1 {[%clk 0:00:15.1]} 35... Be7 {[%clk 0:00:23.3]} 36. d5
{[%clk 0:00:11.5]} 36... cxd5 {[%clk 0:00:22.7]} 37. c6 {[%clk 0:00:12.2]} 37...
Qc8 {[%clk 0:00:22.5]} 38. exd5 {[%clk 0:00:09]} 38... Bxd5 {[%clk 0:00:23.4]}
39. Qd4 {[%clk 0:00:07.6]} 39... Rh1# {[%clk 0:00:22.9]} 0-1

[Event "Early-Titled-Tuesday-Blitz-March-12-2024"]
[Site "Chess.com"]
[Date "2024.03.12"]
[Round "7"]
[White "omeganebulapegasus"]
[Black "laziestwin"]
[Result "1-0"]
[WhiteElo "2811"]
[BlackElo "2577"]
[TimeControl "180+1"]
[EndTime "9:16:19 PDT"]
[Termination "omeganebulapegasus won on time"]

1. d4 {[%clk 0:03:00.9]} 1... d6 {[%clk 0:02:54.4]} 2. Nf3 {[%clk 0:02:59]} 2...
g6 {[%clk 0:02:50.5]} 3. g3 {[%clk 0:02:55.6]} 3... Bg7 {[%clk 0:02:50.1]} 4.
Bg2 {[%clk 0:02:56.2]} 4... Nf6 {[%clk 0:02:50.6]} 5. O-O {[%clk 0:02:56.2]}
5... O-O {[%clk 0:02:51.2]} 6. c4 {[%clk 0:02:53.8]} 6... Nc6 {[%clk 0:02:49.8]}
7. Nc3 {[%clk 0:02:53]} 7... a6 {[%clk 0:02:49.3]} 8. b3 {[%clk 0:02:51.7]} 8...
e5 {[%clk 0:02:39.6]} 9. dxe5 {[%clk 0:02:48.3]} 9... dxe5 {[%clk 0:02:39.9]}
10. Bg5 {[%clk 0:02:41.9]} 10... Be6 {[%clk 0:02:26.2]} 11. Nd5 {[%clk
0:02:06.7]} 11... Bxd5 {[%clk 0:00:21.2]} 12. Bxf6 {[%clk 0:02:06]} 12... Bxf6
{[%clk 0:00:19.1]} 13. cxd5 {[%clk 0:02:05]} 13... Nd4 {[%clk 0:00:18.5]} 14.
Nd2 {[%clk 0:02:03.5]} 14... Bg7 {[%clk 0:00:11.4]} 15. Rc1 {[%clk 0:02:02.9]}
15... Re8 {[%clk 0:00:08.6]} 16. e3 {[%clk 0:01:53.2]} 16... Nb5 {[%clk
0:00:08.4]} 17. Qc2 {[%clk 0:01:52.6]} 17... Rc8 {[%clk 0:00:07]} 18. Nc4 {[%clk
0:01:48.1]} 18... Nd6 {[%clk 0:00:05.3]} 19. Bh3 {[%clk 0:01:45.9]} 19... f5
{[%clk 0:00:04.8]} 20. Qe2 {[%clk 0:01:32.2]} 20... e4 {[%clk 0:00:04.9]} 21.
Rfd1 {[%clk 0:01:30.1]} 21... Qd7 {[%clk 0:00:04.7]} 22. Qc2 {[%clk 0:01:25.7]}
22... Red8 {[%clk 0:00:04.7]} 23. a4 {[%clk 0:01:14.4]} 23... Kh8 {[%clk
0:00:03.2]} 24. Bf1 {[%clk 0:01:10.7]} 24... h5 {[%clk 0:00:03.1]} 25. h4 {[%clk
0:01:10.5]} 25... Kh7 {[%clk 0:00:03.2]} 26. Be2 {[%clk 0:01:10.3]} 26... Nxc4
{[%clk 0:00:03.3]} 27. bxc4 {[%clk 0:01:09.8]} 27... b6 {[%clk 0:00:02.7]} 28.
c5 {[%clk 0:01:07]} 28... bxc5 {[%clk 0:00:02.7]} 29. Bxa6 {[%clk 0:01:07.5]}
29... Rb8 {[%clk 0:00:01.6]} 30. Bb5 {[%clk 0:01:04.7]} 30... Qd6 {[%clk
0:00:01.4]} 31. Qxc5 {[%clk 0:01:04.8]} 31... Qxc5 {[%clk 0:00:02.3]} 32. Rxc5
{[%clk 0:01:04.7]} 32... Rb7 {[%clk 0:00:03.2]} 33. Rdc1 {[%clk 0:01:00.8]}
33... Be5 {[%clk 0:00:03.7]} 34. Rc6 {[%clk 0:01:00.4]} 34... Bd6 {[%clk
0:00:04.2]} 35. Kg2 {[%clk 0:00:59.2]} 35... Ra8 {[%clk 0:00:04.8]} 36. R1c4
{[%clk 0:00:58.7]} 36... Kg7 {[%clk 0:00:05.4]} 37. f3 {[%clk 0:00:48]} 37...
exf3+ {[%clk 0:00:04.9]} 38. Kxf3 {[%clk 0:00:48.9]} 38... Kf6 {[%clk 0:00:05]}
39. e4 {[%clk 0:00:49.5]} 39... fxe4+ {[%clk 0:00:04.8]} 40. Rxe4 {[%clk
0:00:49.4]} 40... Kg7 {[%clk 0:00:04.7]} 41. Re6 {[%clk 0:00:47.6]} 41... Rf8+
{[%clk 0:00:05]} 42. Kg2 {[%clk 0:00:48.2]} 42... Rf6 {[%clk 0:00:03.7]} 43. Rc2
{[%clk 0:00:43.8]} 43... Ra7 {[%clk 0:00:01.8]} 44. Rf2 {[%clk 0:00:42.8]} 44...
Rxe6 {[%clk 0:00:02.1]} 45. dxe6 {[%clk 0:00:42.9]} 45... Kg8 {[%clk 0:00:02.2]}
46. Rf7 {[%clk 0:00:40.7]} 46... Bc5 {[%clk 0:00:01.6]} 47. e7 {[%clk
0:00:39.4]} 1-0